{"text_format":"1","workbook":"xlsx","n_sheets":3,"sheets":["Kullanım","GÖREVLER","MATRİS"],"not_rendered":{"charts":0,"images":2,"macros":1,"external_links":0,"defined_names":0,"comments":0,"pivot_tables":0},"unopened":[],"bounds":{"document_bytes":16777216,"sheet_cells":100000,"rows_first":2000,"rows_last":500,"rows_between":2000,"halvings":0,"cell_chars":16384,"cell_head_chars":4096},"cells_cut":0,"cells_raw":0,"read":"whole","date_system":"1900"}

{"sheet":"Kullanım","index":0,"n_rows":6,"n_cols":2,"rows_kept":6,"cut":false,"hidden":false,"merged":[[30,1,34,13],[8,1,8,13],[9,1,9,13],[10,1,10,13],[11,1,11,13],[12,1,12,13],[13,1,13,13],[14,1,14,13],[15,1,15,13],[16,1,16,13],[17,1,17,13],[18,1,18,13],[5,1,5,13],[6,1,6,13],[7,1,7,13],[0,1,0,13],[1,1,1,13],[2,1,2,13],[3,1,3,13],[4,1,4,13]]}
[null,"Eishenower Matrisi Kullanımı."]
[null,"2.Sayfada yer alan görevler sekmesindeki 24 satıra tüm görevlerinizi yazın."]
[null,"Daha sonra görevlerin sağındaki kutucukları Önemli-Acil / Önemli Değil-Acil / Acil Değil - Önemli / Acil Değil - Önemli Değil"]
[null,"şeklinde işaretleyin. Bunun ardından \"Tüm Görevler\" başlığının yanındaki \"Görevleri Dağıt\" butonuna tıklayarak 3. sayfaya görevlerin"]
[null,"yerleşmesini sağlayın. Böylelikle öncelikleri belirlenmiş olarak matris içerisinde görevleriniz değerlenmiş olacaktır. "]
[null,"Eisenhower Matrisinde hangi alan ne anlama geliyor. "]

{"sheet":"GÖREVLER","index":1,"n_rows":26,"n_cols":14,"rows_kept":26,"cut":false,"hidden":false,"merged":[[1,1,1,2],[26,1,29,9]]}
[]
[null,"TÜM GÖREVLER",null,"ÖNEMLİ",null,"ÖNEMLİ DEĞİL",null,"ACİL",null,"ACİL DEĞİL"]
[null,"01",null,null,false,null,false,null,false,null,false,{"$f":"IF(E3=G3,\"\",IF(E3=TRUE,\"1\",\"2\"))","v":""},{"$f":"IF(I3=K3,\"\",IF(I3=TRUE,\"1\",\"2\"))","v":""},{"$f":"CONCATENATE(L3,M3)","v":""}]
[null,"02",null,null,false,null,false,null,false,null,false,"","",{"$f":"CONCATENATE(L4,M4)","v":""}]
[null,"03",null,null,false,null,false,null,false,null,false,"","",""]
[null,"04",null,null,false,null,false,null,false,null,false,"","",""]
[null,"05",null,null,false,null,false,null,false,null,false,"","",""]
[null,"06",null,null,false,null,false,null,false,null,false,"","",""]
[null,"07",null,null,false,null,false,null,false,null,false,"","",""]
[null,"08",null,null,false,null,false,null,false,null,false,"","",""]
[null,"09",null,null,false,null,false,null,false,null,false,"","",""]
[null,"10",null,null,false,null,false,null,false,null,false,"","",""]
[null,"11",null,null,false,null,false,null,false,null,false,"","",""]
[null,"12",null,null,false,null,false,null,false,null,false,"","",""]
[null,"13",null,null,false,null,false,null,false,null,false,"","",""]
[null,"14",null,null,false,null,false,null,false,null,false,"","",""]
[null,"15",null,null,false,null,false,null,false,null,false,"","",""]
[null,"16",null,null,false,null,false,null,false,null,false,"","",""]
[null,"17",null,null,false,null,false,null,false,null,false,"","",""]
[null,"18",null,null,false,null,false,null,false,null,false,"","",""]
[null,"19",null,null,false,null,false,null,false,null,false,"","",""]
[null,"20",null,null,false,null,false,null,false,null,false,"","",""]
[null,"21",null,null,false,null,false,null,false,null,false,"","",""]
[null,"22",null,null,false,null,false,null,false,null,false,"","",""]
[null,"23",null,null,false,null,false,null,false,null,false,"","",""]
[null,"24",null,null,false,null,false,null,false,null,false,"","",""]

{"sheet":"MATRİS","index":2,"n_rows":26,"n_cols":5,"rows_kept":26,"cut":false,"hidden":false,"merged":[[2,1,13,1],[14,1,25,1],[1,2,1,3],[1,4,1,5]]}
[]
[null,null,"ACİL",null,"ACİL DEĞİL"]
[null,"ÖNEMLİ","01",null,"01"]
[null,null,"02",null,"02"]
[null,null,"03",null,"03"]
[null,null,"04",null,"04"]
[null,null,"05",null,"05"]
[null,null,"06",null,"06"]
[null,null,"07",null,"07"]
[null,null,"08",null,"08"]
[null,null,"09",null,"09"]
[null,null,"10",null,"10"]
[null,null,"11",null,"11"]
[null,null,"12",null,"12"]
[null,"ÖNEMLİ DEĞİL","01",null,"01"]
[null,null,"02",null,"02"]
[null,null,"03",null,"03"]
[null,null,"04",null,"04"]
[null,null,"05",null,"05"]
[null,null,"06",null,"06"]
[null,null,"07",null,"07"]
[null,null,"08",null,"08"]
[null,null,"09",null,"09"]
[null,null,"10",null,"10"]
[null,null,"11",null,"11"]
[null,null,"12",null,"12"]